Cogmind - Beta 13 @@@ ROGUE MODE // 2024.05.02 @ 17:48:59 Player: Barbarossa Result: Destroyed by Y-54 Guardian with Flak Gun Performance ------------- Evolutions (3) 1500 Regions Visited (5) 1000 Robots Destroyed (7) 35 Value Destroyed (298) 298 Prototype IDs (2) 40 Alien Tech Used (0) 0 Bonus (834) 834 TOTAL SCORE: 3707 Bonus ------- Pacifist 834 Cogmind --------- Core Integrity 0/700 Matter 40/300 Energy 3/100 System Corruption 6% Temperature Cool (12) Movement Flying (37) Location -7/Factory Parts ------- > --- POWER (1) -------- (None) > --- PROPULSION (5) --- Xenon Bombardment Thruster Xenon Bombardment Thruster > --- UTILITY (5) ------ Terrain Scan Processor Targeting Computer Advanced Targeting Computer Advanced Targeting Computer > --- WEAPON (2) ------- (None) > --- INVENTORY (5) ---- Xenon Bombardment Thruster Improved Cooling System Improved Cooling System Transmission Jammer Improved Datajack Peak State ------------ > --- POWER ------------ Backup Power III > --- PROPULSION ------- Medium Treads Medium Treads Medium Treads Improved Flight Unit Xenon Bombardment Thruster > --- UTILITY ---------- Coolant Injector Advanced Targeting Computer Advanced Targeting Computer Advanced Targeting Computer Advanced Targeting Computer > --- WEAPON ----------- Improved Spread Laser Light Assault Rifle > --- INVENTORY -------- Improved Cooling System Improved Cooling System Transmission Jammer Beam Rifle Improved Datajack [Rating: 45] Favorites ----------- Power Light Nuclear Core Engine Light Ion Engine Power Core Light Nuclear Core Propulsion Xenon Bombardment Thruster Treads Medium Treads Leg Aluminum Leg Flight Unit Xenon Bombardment Thruster Utility Advanced Targeting Computer Device Coolant Injector Storage Small Storage Unit Processor Advanced Targeting Computer Weapon Light Assault Rifle Energy Gun Improved Spread Laser Ballistic Gun Light Assault Rifle Slashing Weapon Katana Build | -11 -10 -9 -9 -8 -7 ------- Run | Yrd Mat Mat Min Mat Fac Slots Evolved 6 | . . 2 . 2 2 Power . | . . . . . . Propulsion 3 | . . 1 . 1 1 Utility 3 | . . 1 . 1 1 Weapon . | . . . . . . Parts Attached 39 | . . 2 . 4 33 Power 6 | . . . . 1 5 Engine 5 | . . . . 1 4 Core 1 | . . . . . 1 Reactor . | . . . . . . Propulsion 11 | . . 1 . . 10 Treads 3 | . . . . . 3 Leg . | . . . . . . Wheel . | . . . . . . Hover . | . . . . . . Flight 8 | . . 1 . . 7 Utility 12 | . . . . . 12 Device 6 | . . . . . 6 Storage . | . . . . . . Processor 6 | . . . . . 6 Hackware . | . . . . . . Protection . | . . . . . . Artifact . | . . . . . . Weapon 10 | . . 1 . 3 6 Energy Gun 6 | . . 1 . . 5 Energy Cannon . | . . . . . . Ballistic Gun 1 | . . . . . 1 Ballistic Cannon . | . . . . . . Launcher . | . . . . . . Special Weapon . | . . . . . . Impact Weapon . | . . . . . . Slashing Weapon 3 | . . . . 3 . Piercing Weapon . | . . . . . . Special Melee Weapon . | . . . . . . Unidentified Prototypes 2 | . . 1 . . 1 Parts Lost 20 | . . . . 2 18 Power 4 | . . . . 1 3 Propulsion 9 | . . . . . 9 Utility 3 | . . . . . 3 Weapon 4 | . . . . 1 3 Highest Loss Streak 11 | . . . . 2 11 To Critical Strikes 1 | . . . . 1 . Average Slot Usage (%) 50 | . 14 16 22 18 58 Engine 3 | . 14 11 11 7 1 Core 1 | . . . . . 2 Treads 3 | . . . . . 4 Flight 11 | . . 3 11 9 12 Device 4 | . . . . . 5 Processor 16 | . . . . . 20 Energy Gun 4 | . . 1 . . 5 Ballistic Gun 3 | . . . . . 4 Naked Turns . | . . . . . . Heaviest Build 11 | 11 3 3 3 7 11 Greatest Support 30 | 20 3 5 5 5 30 Greatest Overweight (x) 1 | . . . . 1 1 Average Overweight (x) . | . . . . . . Largest Inventory Capacity 8 | . 8 5 5 5 5 Average Capacity 5 | . 5 5 5 5 5 Most Carried 6 | . 6 5 5 5 5 Average Carried 4 | . 5 5 5 4 4 Final Capacity 8 | 8 5 5 5 5 5 Final Carried 6 | 6 5 5 5 4 5 Class Distribution -------------------- 100% | Mutant Dominant Class ---------------- Mutant | -10/Materials Mutant | -9/Materials Mutant | -9/Mines Mutant | -8/Materials Mutant | -7/Factory Resources | -11 -10 -9 -9 -8 -7 ----------- Run | Yrd Mat Mat Min Mat Fac Matter Collected 260 | 200 . . . . 60 Remotely . | . . . . . . Salvage Created 255 | . . . . . 255 Parts 10 | . . . . . 10 Haulers Intercepted . | . . . . . . Recyclers Shooed . | . . . . . . Parts Field Recycled . | . . . . . . Retrieved Matter . | . . . . . . Parts Self-Destructed . | . . . . . . Prevented . | . . . . . . Kills | -11 -10 -9 -9 -8 -7 ------- Run | Yrd Mat Mat Min Mat Fac Combat Hostiles Destroyed 7 | . . . . . 7 Guns 7 | . . . . . 7 Classes Destroyed 3 | . . . . . 3 Swarmer 3 | . . . . . 3 Sentry 3 | . . . . . 3 Hunter 1 | . . . . . 1 Best Kill Streak 3 | . . . . . 3 Combat Bots Only 3 | . . . . . 3 Max Kills in Single Turn 1 | . . . . . 1 Gunslinging . | . . . . . . Exploded . | . . . . . . Melee . | . . . . . . Uniques/NPCs Destroyed . | . . . . . . Combat | -11 -10 -9 -9 -8 -7 -------- Run | Yrd Mat Mat Min Mat Fac Hostile Shots Fired 416 | . 12 19 8 15 362 Missed 197 | . 8 10 1 5 173 Damage Taken 2434 | . 30 113 90 159 2042 Core 953 | . 30 103 61 59 700 Absorbed by Shields . | . . . . . . Core Remaining (%) 84 | 100 88 . 59 89 . Volleys Fired 39 | . . . . . 39 Largest 2 | . . . . . 2 Hottest 96 | . . . . . 96 Shots Fired 71 | . . . . . 71 Gun 71 | . . . . . 71 Cannon . | . . . . . . Launcher . | . . . . . . Special . | . . . . . . Kinetic 24 | . . . . . 24 Thermal 47 | . . . . . 47 Explosive . | . . . . . . Electromagnetic . | . . . . . . Robot Hit Streak 50 | . . . . . 50 Robot Miss Streak 4 | . . . . . 4 Penetration Max . | . . . . . . Secondary Targets 1 | . . . . . 1 Max Gunslinging Chain 1 | . . . . . 1 Shots Hit Robots 60 | . . . . 2 58 Core Hits 42 | . . . . . 42 Critical Kills . | . . . . . . Critical Parts Destroyed . | . . . . . . Critical Strikes 4 | . . . . 1 3 Burn 3 | . . . . . 3 Sever 1 | . . . . 1 . Melee Attacks 3 | . . . . 3 . Impact . | . . . . . . Slashing 3 | . . . . 3 . Piercing . | . . . . . . Sneak Attacks . | . . . . . . Combat Hostiles . | . . . . . . Follow-up Attacks . | . . . . . . Damage Inflicted 1029 | . . . . 63 966 Guns 966 | . . . . . 966 Cannons . | . . . . . . Explosions . | . . . . . . Melee 63 | . . . . 63 . Ramming . | . . . . . . Kinetic 155 | . . . . . 155 Thermal 811 | . . . . . 811 Explosive . | . . . . . . Electromagnetic . | . . . . . . Impact . | . . . . . . Slashing 63 | . . . . 63 . Piercing . | . . . . . . Highest Corruption 6 | . . . . . 6 Average Corruption 2 | . . . . . 2 Corruption Purged . | . . . . . . Corruption Blocked . | . . . . . . Effects 6 | . . . . . 6 Message Errors 3 | . . . . . 3 Matter Fused 1 | . . . . . 1 Data Loss (minor) 2 | . . . . . 2 Overload Shots . | . . . . . . Overflow Damage . | . . . . . . Projectiles . | . . . . . . Explosions . | . . . . . . Melee . | . . . . . . Knockbacks . | . . . . . . Impact . | . . . . . . Kinetic . | . . . . . . Secondary . | . . . . . . Self-Inflicted Damage . | . . . . . . Shots . | . . . . . . Rammed . | . . . . . . Targets Rammed . | . . . . . . Kicked . | . . . . . . Crushed . | . . . . . . Highest Temperature 194 | . . 4 . . 194 Average Temperature 56 | . . 4 . . 57 Received Heat Transfer 663 | . . 60 51 9 543 Siege Activations . | . . . . . . Robots Corrupted . | . . . . . . Combat Hostiles . | . . . . . . Parts Fried . | . . . . . . Impact Corruptions . | . . . . . . Robots Melted . | . . . . . . Combat Hostiles . | . . . . . . Parts Melted . | . . . . . . Heat Transferred 1294 | . . . . . 1294 Parts Sabotaged . | . . . . . . Parts Stolen . | . . . . . . Parts Stripped . | . . . . . . Power Chain Reactions . | . . . . . . Alert | -11 -10 -9 -9 -8 -7 ------- Run | Yrd Mat Mat Min Mat Fac Peak Influence 230 | . 30 102 69 36 230 Initial 39 | . . 12 39 26 16 Average 86 | . 12 39 58 21 101 Maximum Alert Level 1 | . . . . . 1 Low Security (%) 93 | . 100 100 100 100 92 Level 1 6 | . . . . . 7 Level 2 . | . . . . . . Level 3 . | . . . . . . Level 4 . | . . . . . . Level 5 . | . . . . . . High Security . | . . . . . . Max Security . | . . . . . . Squads Dispatched 9 | . 1 1 . 1 6 Investigation 2 | . . 1 . . 1 Extermination . | . . . . . . Reinforcement 4 | . 1 . . 1 2 Assault . | . . . . . . Garrison 3 | . . . . . 3 Intercept . | . . . . . . Searches Triggered . | . . . . . . Construction Impeded . | . . . . . . Haulers Reinforced . | . . . . . . Active Scanning Responses . | . . . . . . Cargo Convoy Interrupts . | . . . . . . Stealth | -11 -10 -9 -9 -8 -7 --------- Run | Yrd Mat Mat Min Mat Fac Distress Signals . | . . . . . . Communications Jammed . | . . . . . . Distress Signals . | . . . . . . Times Spotted 68 | . 6 11 5 6 40 Peak Tracking Total 13 | . 6 9 5 7 13 Tactical Retreats 12 | . . 2 . . 10 Traps | -11 -10 -9 -9 -8 -7 ------- Run | Yrd Mat Mat Min Mat Fac Traps Triggered 1 | . . . . . 1 Indirectly . | . . . . . . Trap Hack Attempts . | . . . . . . Triggered . | . . . . . . Disarmed . | . . . . . . Reprogrammed . | . . . . . . Reused . | . . . . . . Traps Extracted . | . . . . . . Installed . | . . . . . . Triggered . | . . . . . . Machines | -11 -10 -9 -9 -8 -7 ---------- Run | Yrd Mat Mat Min Mat Fac Machines Disabled . | . . . . . . Max in Single Turn . | . . . . . . Machines Repaired . | . . . . . . Machines Dismantled . | . . . . . . Machines Sabotaged . | . . . . . . Overloaded Fab Kills . | . . . . . . Hacking | -11 -10 -9 -9 -8 -7 --------- Run | Yrd Mat Mat Min Mat Fac Machines Accessed 3 | . . 1 . . 2 Terminals 1 | . . 1 . . . Fabricators 2 | . . . . . 2 Repair Stations . | . . . . . . Recycling Units . | . . . . . . Scanalyzers . | . . . . . . Garrison Access . | . . . . . . Total Hacks 8 | . . 4 . . 4 Successful 3 | . . 2 . . 1 Failed 5 | . . 2 . . 3 Catastrophic 1 | . . . . . 1 Database Lockouts . | . . . . . . Manual 2 | . . 2 . . . Terminals 4 | . . 4 . . . Fabricators 4 | . . . . . 4 Repair Stations . | . . . . . . Recycling Units . | . . . . . . Scanalyzers . | . . . . . . Garrison Access . | . . . . . . Terminal Hacks 1 | . . 1 . . . Locate Traps 1 | . . 1 . . . Fabricator Hacks 1 | . . . . . 1 Network Status 1 | . . . . . 1 Repair Station Hacks . | . . . . . . Recycling Unit Hacks . | . . . . . . Scanalyzer . | . . . . . . Garrison Access Hacks . | . . . . . . Unauthorized Hacks 1 | . . 1 . . . Terminals 1 | . . 1 . . . Botnet 1 | . . 1 . . . Fabricators . | . . . . . . Repair Stations . | . . . . . . Recycling Units . | . . . . . . Scanalyzers . | . . . . . . Garrison Access . | . . . . . . Data Cores Recovered . | . . . . . . Used . | . . . . . . Hacking Detections 2 | . . 1 . . 1 Full Trace Events 2 | . . 1 . . 1 Feedback Events . | . . . . . . Feedback Blocked . | . . . . . . Robot Schematics Acquired . | . . . . . . Robots Built . | . . . . . . Authchips . | . . . . . . Time . | . . . . . . Total Robot Build Rating . | . . . . . . Part Schematics Acquired . | . . . . . . Parts Built . | . . . . . . Authchips . | . . . . . . Time . | . . . . . . Total Part Build Rating . | . . . . . . Parts Repaired . | . . . . . . Time . | . . . . . . Parts Recycled . | . . . . . . Recycled Matter . | . . . . . . Retrieved Matter . | . . . . . . Retrieved Components . | . . . . . . Parts Scanalyzed . | . . . . . . Part Schematics Acquired . | . . . . . . Parts Damaged . | . . . . . . Bothacking | -11 -10 -9 -9 -8 -7 ------------ Run | Yrd Mat Mat Min Mat Fac Used RIF Installer . | . . . . . . Robots Hacked . | . . . . . . Non-combat . | . . . . . . Combat . | . . . . . . Robot Hacks Applied . | . . . . . . Relay Couplers Released . | . . . . . . Fabnet Peak Effective % . | . . . . . . Robots Rewired . | . . . . . . Allies Hacked . | . . . . . . Hacks Repelled . | . . . . . . Allies | -11 -10 -9 -9 -8 -7 -------- Run | Yrd Mat Mat Min Mat Fac Total Allies . | . . . . . . Largest Group . | . . . . . . Highest-Rated Group . | . . . . . . Highest-Rated Ally . | . . . . . . Total Orders . | . . . . . . Ally Attacks . | . . . . . . Total Damage . | . . . . . . Kills . | . . . . . . Allies Corrupted . | . . . . . . Allies Melted . | . . . . . . Intel | -11 -10 -9 -9 -8 -7 ------- Run | Yrd Mat Mat Min Mat Fac Robot Analysis Total . | . . . . . . Derelict Logs Recovered . | . . . . . . Drone Launches . | . . . . . . Drone Recoveries . | . . . . . . Exploration | -11 -10 -9 -9 -8 -7 ------------- Run | Yrd Mat Mat Min Mat Fac Turns Passed 843 | . 40 64 7 57 675 Spaces Moved 1424 | 1 71 129 18 89 1116 Core 455 | . 71 86 . . 298 Treads 1 | . . . . . 1 Legs 1 | 1 . . . . . Wheels . | . . . . . . Hover . | . . . . . . Flight 967 | . . 43 18 89 817 Fastest Speed 28 | 120 50 40 40 40 28 Average Speed 45 | 120 50 46 40 44 44 Slowest Speed 160 | 120 50 50 40 110 160 Overloaded Moves . | . . . . . . Propulsion Burnouts . | . . . . . . Robots Hopped 5 | . . 2 . . 3 Cave-ins Triggered . | . . . . . . Exploration Rate (%) 17 | 2 22 18 11 14 37 Regions Visited 5 Branch Regions 1 Pre-discovered Areas . | . . . . . . Known Exits Taken . | . . . . . . Unknown Exits Taken 5 | 1 1 1 1 1 . Scrap Searched . | . . . . . . Spaces Dug . | . . . . . . Terrain Destroyed . | . . . . . . Melee . | . . . . . . Projectile . | . . . . . . AOE . | . . . . . . Terrain Rammed . | . . . . . . Walls Destroyed . | . . . . . . Machines Disabled . | . . . . . . Actions | -11 -10 -9 -9 -8 -7 --------- Run | Yrd Mat Mat Min Mat Fac Total 1541 | . 78 129 17 102 1215 Wait 8 | . . . . . 8 Move 1409 | . 70 124 17 88 1110 Hop 5 | . . 2 . . 3 Pick Up 13 | . 1 . . 2 10 Fast Attach 26 | . . 2 . 2 22 Attach 10 | . . . . 1 9 Detach 4 | . . . . . 4 Swap 3 | . . . . 1 2 Drop 21 | . 7 1 . 5 8 Fire 39 | . . . . . 39 Melee 3 | . . . . 3 . Ram . | . . . . . . Kick . | . . . . . . Crush . | . . . . . . Escape Stasis . | . . . . . . Rewire . | . . . . . . Trap . | . . . . . . Miscellaneous . | . . . . . . Route ------- -11/Scrapyard -10/Materials -9/Materials -9/Mines -8/Materials -7/Factory History --------- Turn | Location | Event 1 | -11/Scrapyard | Discovered new exit (range 0) 1 | -11/Scrapyard | Entered Materials 38 | -10/Materials | Discovered new exit (range 4) 41 | -10/Materials | Entered another Materials area 41 | -9/Materials | Evolved 2 slots: Propulsion x1, Utility x1 101 | -9/Materials | Discovered new exit (range 7) 105 | -9/Materials | Entered Mines 109 | -9/Mines | Discovered new exit (range 8) 112 | -9/Mines | Entered Materials 112 | -8/Materials | Evolved 2 slots: Propulsion x1, Utility x1 165 | -8/Materials | Discovered new exit (range 10) 169 | -8/Materials | Entered Factory 169 | -7/Factory | Evolved 2 slots: Propulsion x1, Utility x1 356 | -7/Factory | Build established: Mutant 596 | -7/Factory | Garrison activated, responded to threat 691 | -7/Factory | Lost 11 parts (2p5n1u3w) 694 | -7/Factory | Core integrity fell below 50% 744 | -7/Factory | Core integrity fell below 20% 844 | -7/Factory | Destroyed by Y-54 Guardian with Flak Gun Last Messages --------------- 00738_ Acquired Targeting Computer. 00741_ Coolant Injector destroyed. 00741_ Adv. Targeting Computer destroyed. 00741_ System corrupted by crushing effect (+1). 00741_ System corrupted by crushing effect (+4). 00741_ Knocked back. 00743_ Critical hit (Burn: +37). 00769_ System corrupted: Matter fused (-6). 00773_ K-01 Serf cleans the Nuclear Reactor. 00785_ Acquired Terrain Scan Processor. 00800_ Q %V&9CDT/HC%PTZ JY& 00814_ Acquired Xenon Bombardment Thruster. 00822_ IFNCAII6JF|,DW&%VBDRRTLIHJN 00836_ Xenon Bombardment Thruster destroyed. 00837_ ALERT: Cargo convoy en route, clear transfer corridor. 00840_ System corrupted: Component data lost. 00843_ Xenon Bombardment Thruster destroyed. Map ----- +----------------------------------------------------+ | # #???########## ###############+## # """ | | # #???# / + """ | | # ##### """ # # """ | | + + """ # "" # """ | | # ###### """ # """ """ """ """ """ # """ | | #####????# # "R """ """ """ """ # """ | | #????????# """ # """ """ """ """ """ # """ | | #????????# """ # """ ^ # | | #????????# """ # """ """ """ """ # | | #????????# # """ """ """ """ #+### | | #????????########+# """ """ """ """ | | #????????????????? ##+ | | #????????????????+#### """ "?" """ """ """ ## | | #????????????????????# """ "?" "?" """ """ ## | | #????????????????????# "?" "?? ?"" """ """ ## | | ?????????????????????#k ? # | | ?????????????????????# """ """ """ """ """ ## | | ?????????????????????+ """ """ """ """ """ #? | | ?????????????????????# """ """ """ """ """ #? | | ?????????????????????# #? | | ?????????????????????? #? | | ??????????????????????#s ############# #? | | ??????????????????????#s # ?????? ???# #? | | ??????????????????????#s # ????? ???# +? | | ??????????????????????+ # ] """" ???# #? | | ??????????????????????# @ # """" ???# #? | | ??????????????????????# # """" #### ## | | ??????????????????????# # ## * | | ??????????????????????# # ! ## % | | ??????????????????????# # * /## | | #########?###?????????# # ! ## | | ? #?????????# k # // ## | | """ """" #?????????# # // [ ## | | """ """" #?????????# # ## | | """ """" ###########w # / | | """" ## g####+###/## | | ## g ######+#### | | """" ## """ """ g #?????????? | | """" ## """ Y G" #?????????? | | """" + """ """ #?????????? | | """" ## #?????????? | | ## """ """ #?????????? | | [ ## """ """ +?????????? | | ##########+### """ """ ==% ####+#####?????????? | | =% ##?? ?????????????? | | """ """ [*=#??? ?????????????? | | """ """ #?? ????????????? | | """ """ #?? ????????????? | | #? ???????????? | | ##########+#### """ """ #? ???????????? | +----------------------------------------------------+ Best States ------------- Heat Dissipation 34 Coolant Potential 65 Energy Generation 14 Energy Capacity 250 Matter Stores 300 Matter Capacity 300 Sight Range 16 Terrain Scan Density 85 ECM Strength 2 Evasion (%) 63 Targeting Accuracy 32 Recoil Reduction 2 Item Schematics ----------------- None Robot Schematics ------------------ None Fabricated ------------ Nothing Alien Tech Used ----------------- None Achievements -------------- None Challenges ------------ None Game ------ Seed StormGravitonCasing Manual? 0 Play Time 00:14:06 Cumulative 146.3 hours Start 2024.05.02 @ 17:37:32 End 2024.05.02 @ 17:48:59 Sessions 1 Manual Loads 0 Difficulty Rogue Special Mode None Game No. 287 Rogue 287 Adventurer 0 Explorer 0 Win Type - Total 0 Types 0/0/0/0/0/0/0/0/0 Lore% 36 Gallery% 49 Achievement% 36 Wizard Run 0 Options --------- Layout 1 ASCII 0 Keyboard 0 Movement Mouse Keybinds 0 Fullscreen 1 Font 24/Smallcaps Map View 50x40 Zoom Use 0% Tactical HUD 1 Map Filters NONE Filters NONE Steam 1 RUN: 4a427334-21c0-4542-b4ef-ce6955b60235